fUST/lending_fUST_20260126
["ID","MTS","AMOUNT","RATE_DAILY","PERIOD"]
[403625551,1769428238224,-500.0,0.00010885,2]
[403625552,1769428238233,-500.0,0.00010885,2]
[403625553,1769428238242,-500.0,0.00010885,2]
[403625554,1769428238251,-500.0,0.00010885,2]
[403625555,1769428238261,-500.0,0.00010885,2]
[403625556,1769428238270,-500.0,0.00010885,2]
[403625557,1769428238279,-500.0,0.00010885,2]
[403625558,1769428238288,-500.0,0.00010885,2]
[403625559,1769428238298,-500.0,0.00010885,2]
[403625560,1769428238307,-500.0,0.00010885,2]
[403625561,1769428238316,-500.0,0.00010885,2]
[403625562,1769428238325,-500.0,0.00010885,2]
[403625563,1769428238334,-500.0,0.00010885,2]
[403625564,1769428238344,-500.0,0.00010885,2]
[403625565,1769428238353,-500.0,0.00010885,2]
[403625566,1769428238362,-500.0,0.00010885,2]
[403625567,1769428238371,-500.0,0.00010885,2]
[403625568,1769428238380,-500.0,0.00010885,2]
[403625569,1769428238390,-500.0,0.00010885,2]
[403625570,1769428238399,-515.09023778,0.00010885,2]
[403625571,1769428238408,-500.0,0.00010885,2]
[403625572,1769428238418,-500.0,0.00010885,2]
[403625573,1769428238427,-500.0,0.00010885,2]
[403625574,1769428238436,-500.0,0.00010885,2]
[403625575,1769428238446,-500.0,0.00010885,2]
[403625576,1769428238455,-500.0,0.00010885,2]
[403625577,1769428238464,-500.0,0.00010885,2]
[403625578,1769428238473,-500.0,0.00010885,2]
[403625579,1769428238484,-500.0,0.00010885,2]
[403625580,1769428238494,-500.0,0.00010885,2]
[403625581,1769428238503,-500.0,0.00010885,2]
[403625582,1769428238513,-500.0,0.00010885,2]
[403625583,1769428238526,-500.0,0.00010885,2]
[403625584,1769428238535,-500.0,0.00010885,2]
[403625585,1769428238545,-500.0,0.00010885,2]
[403625586,1769428238555,-500.0,0.00010885,2]
[403625587,1769428238564,-500.0,0.00010885,2]
[403625588,1769428238574,-500.0,0.00010885,2]
[403625589,1769428238583,-500.0,0.00010885,2]
[403625590,1769428238594,-500.0,0.00010885,2]
[403625591,1769428238603,-500.0,0.00010885,2]
[403625592,1769428238612,-500.0,0.00010885,2]
[403625593,1769428238621,-500.0,0.00010885,2]
[403625594,1769428238631,-500.0,0.00010885,2]
[403625595,1769428238640,-500.0,0.00010885,2]
[403625596,1769428238650,-500.0,0.00010885,2]
[403625597,1769428238659,-500.0,0.00010885,2]
[403625598,1769428238669,-500.0,0.00010885,2]
[403625599,1769428238679,-500.0,0.00010885,2]
[403625600,1769428238689,-500.0,0.00010885,2]
[403625601,1769428238699,-500.0,0.00010885,2]
[403625602,1769428238708,-500.0,0.00010885,2]
[403625603,1769428238717,-500.0,0.00010885,2]
[403625604,1769428238727,-500.0,0.00010885,2]
[403625605,1769428238737,-532.62244065,0.00010885,2]
[403625606,1769428238746,-500.0,0.00010885,2]
[403625607,1769428238756,-500.0,0.00010885,2]
[403625608,1769428238766,-500.0,0.00010885,2]
[403625609,1769428238775,-500.0,0.00010885,2]
[403625610,1769428238785,-500.0,0.00010885,2]
[403625611,1769428238795,-500.0,0.00010885,2]
[403625612,1769428238804,-500.0,0.00010885,2]
[403625613,1769428238813,-500.0,0.00010885,2]
[403625614,1769428238823,-316.93522912,0.00010885,2]
[403625615,1769428238833,-500.0,0.00010885,2]
[403625616,1769428238842,-158.54705968,0.00010885,2]
[403625617,1769428238851,-294.77,0.000109,3]
[403625618,1769428238861,-150.0,0.00011022,2]
[403625619,1769428238871,-300.0,0.00011102,2]
[403625620,1769428238881,-300.0,0.00011102,2]
[403625621,1769428238892,-300.0,0.00011102,2]
[403625622,1769428238902,-300.0,0.00011102,2]
[403625623,1769428238912,-300.0,0.00011102,2]
[403625624,1769428238922,-300.0,0.00011102,2]
[403625625,1769428238931,-300.0,0.00011102,2]
[403625626,1769428238941,-300.0,0.00011102,2]
[403625627,1769428238951,-300.0,0.00011102,2]
[403625628,1769428238960,-300.0,0.00011102,2]
[403625629,1769428238969,-300.0,0.00011102,2]
[403625630,1769428238978,-300.0,0.00011102,2]
[403625631,1769428238988,-300.0,0.00011102,2]
[403625632,1769428238998,-300.0,0.00011102,2]
[403625633,1769428239007,-300.0,0.00011102,2]
[403625634,1769428239018,-600.0,0.00011102,2]
[403625635,1769428239028,-150.0,0.00011159,2]
[403625636,1769428239037,-265.9,0.000112,2]
[403625637,1769428239047,-361.96,0.000112,2]
[403625638,1769428239056,-250.0,0.00011296,2]
[403625639,1769428239066,-1175.22476903,0.00011568,2]
[403625640,1769428239075,-420.0,0.00011853,2]
[403625641,1769428239085,-1680.0,0.00011862,2]
[403625642,1769428239095,-720.0,0.00012212,2]
[403625643,1769428239105,-3088.2955245,0.00012268,2]
[403625644,1769428239114,-152.133235,0.00012268,2]
[403625645,1769428239124,-238.08,0.00012329,2]
[403625646,1769428239133,-198.4,0.00012329,2]
[403625647,1769428239143,-165.34,0.00012329,2]
[403625648,1769428239157,-826.7,0.00012329,2]
[403625649,1769428239166,-394.17880483,0.00012493,2]
[403625650,1769428239177,-709.5218487,0.00012493,2]
[403625651,1769428239186,-1261.37217547,0.00012493,2]
[403625652,1769428239197,-1970.89402416,0.00012493,2]
[403625653,1769428239207,-2838.0873948,0.00012493,2]
[403625654,1769428239217,-3862.95228736,0.00012493,2]
[403625655,1769428239227,-5040.44321316,0.00012493,2]
[403625656,1769428239236,-377.90212361,0.00012493,2]
[403625657,1769428239245,-680.2238225,0.00012493,2]
[403625658,1769428239254,-1209.28679556,0.00012493,2]
[403625659,1769428239264,-1889.51061805,0.00012493,2]
[403625660,1769428239272,-2718.17439471,0.00012493,2]
[403625661,1769428239281,-59478.9941107,0.000125,2]
[403625662,1769428239290,-250.59525516,0.00012628,2]
[403625663,1769428239299,-209.40437684,0.00012895,2]
[403625664,1769428239308,-217.15233878,0.00012895,2]
[403625665,1769428239317,-225.18697532,0.00012895,2]
[403625666,1769428239326,-233.51889341,0.00012895,2]
[403625667,1769428239335,-283.61912344,0.00012895,2]
[403625668,1769428239345,-321.53783763,0.00012895,2]
[403625669,1769428239356,-444.04,0.000129,2]
[403625670,1769428239366,-190.29,0.000129,2]
[403625671,1769428239376,-314177.86720519,0.00013,2]
[403625715,1769428240264,-3476.92018207,0.00013,2]
[403625717,1769428240275,-1899.62573609,0.00013,2]
[403626237,1769428289942,184.54813477,0.0003469,120]
[403626240,1769428965379,1000.0,0.00034691,120]
[403626241,1769428970479,1000.0,0.0003,120]
[403626242,1769429021496,1016.0,0.0003,120]
[403626243,1769429096182,2969.44260855,0.00034691,120]
[403626349,1769429436615,-217.0,9.73e-05,2]
[403626350,1769429436624,-300.0,9.73e-05,2]
[403626352,1769429436633,-300.0,9.73e-05,2]
[403626354,1769429436645,-300.0,9.73e-05,2]
[403626356,1769429436655,-300.0,9.73e-05,2]
[403626359,1769429436665,-1200.0,9.73e-05,2]
[403626361,1769429436674,-211.6672374,9.73e-05,2]
[403626362,1769429436683,-500.0,9.731e-05,2]
[403626364,1769429436692,-22088.95771145,9.731e-05,2]
[403626366,1769429436701,-500.0,9.731e-05,2]
[403626368,1769429436710,-596.33402809,9.731e-05,2]
[403626370,1769429436719,-208.31534935,9.731e-05,2]
[403626372,1769429436729,-500.0,9.731e-05,2]
[403626374,1769429436738,-500.0,9.731e-05,2]
[403626377,1769429436748,-500.0,9.731e-05,2]
[403626380,1769429436757,-500.0,9.731e-05,2]
[403626382,1769429436767,-500.0,9.731e-05,2]
[403626385,1769429436776,-500.0,9.731e-05,2]
[403626386,1769429436785,-500.0,9.731e-05,2]
[403626388,1769429436794,-500.0,9.731e-05,2]
[403626390,1769429436803,-500.0,9.731e-05,2]
[403626392,1769429436812,-411.56042028,9.731e-05,2]
[403626394,1769429436822,-500.0,9.731e-05,2]
[403626397,1769429436831,-500.0,9.731e-05,2]
[403626399,1769429436840,-500.0,9.731e-05,2]
[403626400,1769429436849,-500.0,9.731e-05,2]
[403626402,1769429436859,-500.0,9.731e-05,2]
[403626404,1769429436868,-500.0,9.731e-05,2]
[403626406,1769429436878,-500.0,9.731e-05,2]
[403626408,1769429436887,-500.0,9.731e-05,2]
[403626410,1769429436897,-500.0,9.731e-05,2]
[403626412,1769429436906,-500.0,9.731e-05,2]
[403626414,1769429436915,-500.0,9.731e-05,2]
[403626416,1769429436925,-500.0,9.731e-05,2]
[403626418,1769429436934,-500.0,9.731e-05,2]
[403626420,1769429436943,-500.0,9.731e-05,2]
[403626422,1769429436952,-500.0,9.731e-05,2]
[403626424,1769429436961,-500.0,9.731e-05,2]
[403626427,1769429436971,-500.0,9.731e-05,2]
[403626428,1769429436980,-500.0,9.731e-05,2]
[403626430,1769429436989,-500.0,9.731e-05,2]
[403626433,1769429437000,-500.0,9.731e-05,2]
[403626435,1769429437009,-500.0,9.731e-05,2]
[403626437,1769429437019,-500.0,9.731e-05,2]
[403626439,1769429437028,-500.0,9.731e-05,2]
[403626441,1769429437037,-500.0,9.731e-05,2]
[403626443,1769429437046,-500.0,9.731e-05,2]
[403626445,1769429437057,-500.0,9.731e-05,2]
[403626447,1769429437066,-500.0,9.731e-05,2]
[403626449,1769429437075,-500.0,9.731e-05,2]
[403626451,1769429437084,-500.0,9.731e-05,2]
[403626453,1769429437094,-500.0,9.731e-05,2]
[403626454,1769429437102,-500.0,9.731e-05,2]
[403626455,1769429437111,-500.0,9.731e-05,2]
[403626456,1769429437120,-500.0,9.731e-05,2]
[403626457,1769429437129,-500.0,9.731e-05,2]
[403626458,1769429437138,-500.0,9.731e-05,2]
[403626459,1769429437147,-500.0,9.731e-05,2]
[403626460,1769429437156,-450.0,9.731e-05,2]
[403626461,1769429437165,-500.0,9.731e-05,2]
[403626462,1769429437174,-500.0,9.731e-05,2]
[403626463,1769429437182,-500.0,9.731e-05,2]
[403626464,1769429437191,-500.0,9.731e-05,2]
[403626465,1769429437200,-500.0,9.731e-05,2]
[403626466,1769429437209,-500.0,9.731e-05,2]
[403626467,1769429437218,-500.0,9.731e-05,2]
[403626468,1769429437227,-501.68072594,9.731e-05,2]
[403626469,1769429437235,-500.0,9.731e-05,2]
[403626470,1769429437244,-500.0,9.731e-05,2]
[403626471,1769429437252,-500.0,9.731e-05,2]
[403626472,1769429437262,-500.0,9.731e-05,2]
[403626473,1769429437271,-500.0,9.731e-05,2]
[403626474,1769429437280,-473.87662335,9.731e-05,2]
[403626475,1769429437289,-500.0,9.731e-05,2]
[403626476,1769429437298,-500.0,9.731e-05,2]
[403626477,1769429437307,-500.0,9.731e-05,2]
[403626478,1769429437316,-500.0,9.731e-05,2]
[403626479,1769429437325,-500.0,9.731e-05,2]
[403626480,1769429437333,-500.0,9.731e-05,2]
[403626481,1769429437345,-500.0,9.731e-05,2]
[403626482,1769429437354,-500.0,9.731e-05,2]
[403626483,1769429437363,-500.0,9.731e-05,2]
[403626484,1769429437372,-500.0,9.731e-05,2]
[403626485,1769429437380,-500.0,9.731e-05,2]
[403626486,1769429437389,-555.39429106,9.731e-05,2]
[403626487,1769429437399,-500.0,9.731e-05,2]
[403626488,1769429437408,-500.0,9.731e-05,2]
[403626489,1769429437418,-500.0,9.731e-05,2]
[403626491,1769429437427,-500.0,9.731e-05,2]
[403626493,1769429437436,-500.0,9.731e-05,2]
[403626495,1769429437446,-500.0,9.731e-05,2]
[403626497,1769429437455,-500.0,9.731e-05,2]
[403626499,1769429437464,-500.0,9.731e-05,2]
[403626501,1769429437474,-500.0,9.731e-05,2]
[403626503,1769429437483,-500.0,9.731e-05,2]
[403626505,1769429437491,-500.0,9.731e-05,2]
[403626507,1769429437500,-500.0,9.731e-05,2]
[403626509,1769429437510,-500.0,9.731e-05,2]
[403626511,1769429437519,-500.0,9.731e-05,2]
[403626513,1769429437529,-500.0,9.731e-05,2]
[403626515,1769429437538,-500.0,9.731e-05,2]
[403626517,1769429437546,-500.0,9.731e-05,2]
[403626519,1769429437555,-500.0,9.731e-05,2]
[403626521,1769429437569,-500.0,9.731e-05,2]
[403626523,1769429437578,-500.0,9.731e-05,2]
[403626525,1769429437587,-500.0,9.731e-05,2]
[403626527,1769429437596,-500.0,9.731e-05,2]
[403626529,1769429437605,-500.0,9.731e-05,2]
[403626531,1769429437615,-500.0,9.731e-05,2]
[403626533,1769429437624,-500.0,9.731e-05,2]
[403626535,1769429437633,-500.0,9.731e-05,2]
[403626537,1769429437642,-500.0,9.731e-05,2]
[403626539,1769429437652,-500.0,9.731e-05,2]
[403626541,1769429437661,-616.39094427,9.731e-05,2]
[403626543,1769429437671,-500.0,9.731e-05,2]
[403626545,1769429437681,-500.0,9.731e-05,2]
[403626547,1769429437689,-500.0,9.731e-05,2]
[403626549,1769429437698,-500.0,9.731e-05,2]
[403626551,1769429437707,-500.0,9.731e-05,2]
[403626553,1769429437718,-500.0,9.731e-05,2]
[403626555,1769429437726,-500.0,9.731e-05,2]
[403626557,1769429437735,-500.0,9.731e-05,2]
[403626560,1769429437744,-500.0,9.731e-05,2]
[403626562,1769429437753,-500.0,9.731e-05,2]
[403626564,1769429437762,-500.0,9.731e-05,2]
[403626566,1769429437771,-500.0,9.731e-05,2]
[403626568,1769429437780,-500.0,9.731e-05,2]
[403626570,1769429437790,-60433.3001931,9.732e-05,2]
[403626572,1769429437800,-300.0,9.926e-05,2]
[403626574,1769429437810,-300.0,9.926e-05,2]
[403626576,1769429437819,-300.0,9.926e-05,2]
[403626578,1769429437828,-300.0,9.926e-05,2]
[403626580,1769429437838,-300.0,9.926e-05,2]
[403626582,1769429437847,-300.0,9.926e-05,2]
[403626584,1769429437856,-300.0,9.926e-05,2]
[403626586,1769429437866,-300.0,9.926e-05,2]
[403626588,1769429437875,-300.0,9.926e-05,2]
[403626590,1769429437884,-300.0,9.926e-05,2]
[403626592,1769429437893,-300.0,9.926e-05,2]
[403626594,1769429437903,-300.0,9.926e-05,2]
[403626596,1769429437912,-300.0,9.926e-05,2]
[403626598,1769429437922,-300.0,9.926e-05,2]
[403626600,1769429437931,-300.0,9.926e-05,2]
[403626602,1769429437940,-600.0,9.926e-05,2]
[403626604,1769429437949,-502.89555556,0.00010005,2]
[403626606,1769429437958,-150.0,0.00010509,2]
[403626608,1769429437968,-155.65094649,0.00010509,2]
[403626610,1769429437978,-150.0,0.00010509,2]
[403626612,1769429437988,-500.0,0.00010509,2]
[403626614,1769429437998,-150.0,0.00010509,2]
[403626617,1769429438009,-150.33937829,0.00010509,2]
[403626619,1769429438018,-150.0,0.00010509,2]
[403626620,1769429438028,-150.0,0.00010509,2]
[403626623,1769429438039,-150.0,0.00010509,2]
[403626625,1769429438050,-150.0,0.00010509,2]
[403626626,1769429438060,-150.0,0.0001051,2]
[403626628,1769429438070,-150.0,0.0001051,2]
[403626630,1769429438081,-150.0,0.0001051,2]
[403626632,1769429438091,-1308.58219161,0.00010547,2]
[403626634,1769429438100,-257.968,0.00010569,2]
[403626636,1769429438110,-1308.58219158,0.00010585,2]
[403626638,1769429438121,-1308.58219158,0.00010624,2]
[403626640,1769429438131,-150.0,0.00010646,2]
[403626642,1769429438140,-150.0,0.00010646,2]
[403626644,1769429438153,-500.0,0.00010646,2]
[403626646,1769429438167,-150.0,0.00010646,2]
[403626648,1769429438177,-150.0,0.00010646,2]
[403626650,1769429438187,-150.0,0.00010646,2]
[403626652,1769429438197,-150.0,0.00010646,2]
[403626654,1769429438206,-150.0,0.00010647,2]
[403626656,1769429438215,-150.0,0.00010647,2]
[403626658,1769429438224,-150.0,0.00010647,2]
[403626660,1769429438233,-1308.58219158,0.00010662,2]
[403626662,1769429438242,-75695.40941505,0.00010683,2]
[403626664,1769429438252,-1308.58219158,0.000107,2]
[403626666,1769429438261,-420.0,0.00010703,2]
[403626668,1769429438271,-1680.0,0.00010703,2]
[403626670,1769429438280,-158.54705968,0.00010782,2]
[403626672,1769429438290,-150.0,0.00010783,2]
[403626674,1769429438299,-150.0,0.00010783,2]
[403626676,1769429438308,-500.0,0.00010783,2]
[403626678,1769429438318,-200.95054583,0.00010783,2]
[403626680,1769429438327,-200.64348951,0.00010783,2]
[403626682,1769429438337,-200.0,0.00010783,2]
[403626684,1769429438346,-200.0,0.00010783,2]
[403626686,1769429438354,-200.66953665,0.00010784,2]
[403626688,1769429438364,-200.0,0.00010784,2]
[403626690,1769429438374,-200.0,0.00010784,2]
[403626692,1769429438383,-429.48,0.000108,2]
[403626694,1769429438393,-720.0,0.00010918,2]
[403626696,1769429438404,-150.0,0.0001092,2]
[403626698,1769429438414,-150.0,0.0001092,2]
[403626700,1769429438423,-200.0,0.0001092,2]
[403626702,1769429438433,-190.29,0.00011,2]
[403626704,1769429438442,-150.0,0.00011057,2]
[403626706,1769429438451,-222.35139926,0.00011057,2]
[403626709,1769429438460,-444.04,0.000111,2]
[403626711,1769429438470,-250.0,0.00011194,2]
[403626713,1769429438479,-493.15,0.000112,2]
[403626715,1769429438488,-11707.15056659,0.00011676,2]
[403626717,1769429438497,-249.76734013,0.0001173,2]
[403626719,1769429438506,-587.0,0.00011773,2]
[403626721,1769429438516,-491.0,0.00011773,2]
[403626723,1769429438525,-864.0,0.0001201,2]
[403626725,1769429438534,-238.08,0.00012329,2]
[403626727,1769429438544,-198.4,0.00012329,2]
[403626729,1769429438553,-165.34,0.00012329,2]
[403626731,1769429438564,-826.7,0.00012329,2]
[403626733,1769429438577,-209.40437684,0.00012381,2]
[403626735,1769429438587,-217.15233878,0.00012381,2]
[403626737,1769429438597,-225.18697532,0.00012381,2]
[403626739,1769429438607,-233.51889341,0.00012381,2]
[403626741,1769429438616,-283.61912344,0.00012381,2]
[403626743,1769429438626,-321.53783763,0.00012381,2]
[403626745,1769429438636,-3086.7485961,0.0001286,2]
[403626747,1769429438649,-842.8490554,0.0001286,2]
[403626749,1769429438659,-7722.05903788,0.00012868,2]
[403626751,1769429438669,-9660.27372543,0.00012926,2]
[403626753,1769429438679,-516.0,0.00012951,2]
[403626755,1769429438690,-153.80161828,0.00012999,2]
[403626757,1769429438700,-150.0,0.00012999,2]
[403626759,1769429438709,-250.58033376,0.00012999,2]
[403626761,1769429438718,-150.0,0.00012999,2]
[403626763,1769429438728,-155.78190647,0.00012999,2]
[403626765,1769429438739,-174.55748242,0.00012999,2]
[403626767,1769429438749,-150.0,0.00012999,2]
[403626769,1769429438759,-680445.58687665,0.00013,2]
[403626771,1769429438769,-150.0,0.00013136,2]
[403626773,1769429438779,-150.0,0.00013136,2]
[403626775,1769429438788,-150.0,0.00013136,2]
[403626777,1769429438798,-1041.66666667,0.00013192,2]
[403626779,1769429438808,-1000.0,0.00013211,2]
[403626781,1769429438818,-259.27258242,0.00013218,2]
[403626783,1769429438827,-500.0,0.00013273,2]
[403626785,1769429438836,-500.0,0.00013273,2]
[403626787,1769429438846,-500.0,0.00013273,2]
[403626789,1769429438855,-500.0,0.00013273,2]
[403626791,1769429438865,-500.0,0.00013273,2]
[403626793,1769429438874,-150.0,0.00013273,2]
[403626795,1769429438883,-150.0,0.00013273,2]
[403626797,1769429438893,-150.0,0.0001341,2]
[403626799,1769429438903,-150.0,0.0001341,2]
[403626801,1769429438913,-11406.59076669,0.00013442,2]
[403626803,1769429438922,-678449.65564946,0.000135,2]
[403626819,1769429439075,-914.98005166,0.000135,2]
[403626821,1769429439087,-311.559,0.000135,2]
[403626826,1769429439124,-530.97528814,0.000135,2]
[403626828,1769429439136,-12188.99085826,0.000135,2]
[403626830,1769429439148,-825.0,0.000135,2]
[403626861,1769429439422,-6382.20423893,0.000135,2]
[403626863,1769429439434,-3259.11737104,0.000135,2]
[403626865,1769429439445,-20558.80273973,0.000135,2]
[403626867,1769429439456,-6841.03147185,0.000135,2]
[403626869,1769429439467,-861.4296,0.000135,2]
[403626871,1769429439478,-1355.09698456,0.000135,2]
[403626874,1769429439490,-1888.3931287,0.000135,2]
[403626876,1769429439503,-265632.76361767,0.000135,2]
[403626878,1769429439522,-300.0,0.000135,3]
[403626880,1769429439533,-500.0,0.000135,2]
[403626882,1769429439541,-150.0,0.00013547,2]
[403626884,1769429439551,-150.0,0.00013547,2]
[403626886,1769429439560,-300.0,0.00013673,2]
[403626888,1769429439573,-250.0,0.00013684,2]
[403626890,1769429439582,-250.0,0.00013684,2]
[403626892,1769429439591,-159.67387,0.00013699,2]
[403626894,1769429439600,-1000.0,0.00013699,2]
[403626896,1769429439609,-228.02056982,0.00013699,2]
[403626898,1769429439618,-300.01916849,0.00013699,2]
[403626900,1769429439627,-500.0,0.00013699,2]
[403626902,1769429439637,-500.0,0.00013699,2]
[403626904,1769429439647,-171.30774651,0.00013699,2]
[403626906,1769429439656,-287.86744286,0.0001373,2]
[403626908,1769429439665,-1000.0,0.00013821,2]
[403626910,1769429439674,-1000.0,0.00013821,2]
[403626912,1769429439684,-1000.0,0.00013821,2]
[403626914,1769429439693,-1000.0,0.00013821,2]
[403626916,1769429439703,-1000.0,0.00013821,2]
[403626918,1769429439712,-150.0,0.00013846,2]
[403626920,1769429439721,-150.0,0.00013896,2]
[403626922,1769429439730,-2150.0,0.00013896,2]
[403626924,1769429439740,-179.0,0.00013896,2]
[403626926,1769429439749,-418.0,0.00013896,2]
[403626928,1769429439759,-300.0,0.00013973,3]
[403626930,1769429439769,-38000.0,0.00013983,3]
[403626932,1769429439778,-100000.0,0.0001399,2]
[403626934,1769429439787,-38000.0,0.00013992,3]
[403626936,1769429439796,-600.0,0.00014221,2]
[403626938,1769429439806,-1000.0,0.00014247,2]
[403626940,1769429439816,-1000.0,0.00014247,2]
[403626941,1769429439826,-1500.0,0.00014368,2]
[403626944,1769429439835,-1500.0,0.00014368,2]
[403626945,1769429439845,-943.77363094,0.00014368,2]
[403626949,1769429439855,-1500.0,0.00014368,2]
[403626952,1769429439864,-1500.0,0.00014368,2]
[403626953,1769429439873,-505.20925112,0.00014514,2]
[403626955,1769429439882,-1000.0,0.00014532,2]
[403626957,1769429439892,-244.0,0.00014532,2]
[403626959,1769429439903,-179.9820018,0.00014554,2]
[403626961,1769429439913,-909.37665202,0.0001466,2]
[403626964,1769429439925,-377.90212361,0.00014759,2]
[403626966,1769429439935,-168.0,0.00014762,2]
[403626968,1769429439945,-900.0,0.00014768,2]
[403626970,1769429439956,-221.75860918,0.00014773,2]
[403626972,1769429439966,-1500.0,0.00014795,2]
[403626974,1769429439975,-1461.62464944,0.00014795,2]
[403626976,1769429439986,-1616.66960359,0.00014805,2]
[403626978,1769429439995,-1936.63620574,0.00014815,5]
[403626980,1769429440004,-153.6801633,0.00014853,2]
[403626982,1769429440014,-595.81313505,0.000149,2]
[403626984,1769429440024,-2000.0,0.00014916,2]
[403626986,1769429440034,-2000.0,0.00014916,2]
[403626988,1769429440044,-2000.0,0.00014916,2]
[403626990,1769429440053,-2000.0,0.00014916,2]
[403626992,1769429440063,-680.2238225,0.00014929,2]
[403626994,1769429440072,-2526.04625561,0.00014951,2]
[403626996,1769429440082,-168.0,0.00014991,2]
[403626998,1769429440093,-24385.87077918,0.00015,2]
[403627000,1769429440102,-151.21168241,0.00015,2]
[403627002,1769429440111,-25005.0,0.00015,2]
[403627004,1769429440121,-1020.44694379,0.00015,2]
[403627006,1769429440131,-580.47140307,0.00015,2]
[403627008,1769429440141,-8022.08575732,0.00015,2]
[403627339,1769429443500,-561.20399237,0.00015,2]
[403627734,1769429475497,49897.90992433,0.00034691,120]
[403627735,1769429490650,172.64875308,0.00034691,120]
[403627736,1769429775187,2198.669,0.0001,10]
[403627737,1769429991647,500.0,0.00034708,120]
[403627738,1769429991880,500.0,0.00034708,120]
[403627739,1769429992140,500.0,0.00034708,120]
[403627740,1769429992381,500.0,0.00034708,120]
[403627741,1769429992617,500.0,0.00034708,120]
[403627742,1769429992845,500.0,0.00034708,120]
[403627743,1769429993112,500.0,0.00034708,120]
[403627744,1769429993367,500.0,0.00034708,120]
[403627745,1769429993619,500.0,0.00034708,120]
[403627746,1769429993895,500.0,0.00034708,120]
[403627747,1769429994121,151.16048736,0.00034708,120]
[403627748,1769430015379,-300.0,9.629e-05,2]
[403627749,1769430015400,-700.0,9.629e-05,2]
[403627750,1769430017213,-500.0,9.629e-05,2]
[403627751,1769430017237,-500.0,9.629e-05,2]
[403627752,1769430017615,-55.0,9.629e-05,2]
[403627753,1769430017638,-945.0,9.63e-05,2]
[403627754,1769430017977,-1000.0,9.63e-05,2]
[403627755,1769430018360,-1000.0,9.63e-05,2]
[403627756,1769430018769,-1000.0,9.63e-05,2]
[403627757,1769430019113,-1000.0,9.63e-05,2]
[403627758,1769430019475,-1000.0,9.63e-05,2]
[403627759,1769430019865,-1000.0,9.63e-05,2]
[403627760,1769430020287,-1000.0,9.63e-05,2]
[403627761,1769430020651,-1000.0,9.63e-05,2]
[403627762,1769430021898,-1000.0,9.63e-05,2]
[403627763,1769430022272,-1000.0,9.63e-05,2]
[403627764,1769430022653,-1000.0,9.63e-05,2]
[403627765,1769430023922,-1000.0,9.63e-05,2]
[403627766,1769430024836,-1000.0,9.63e-05,2]
[403627767,1769430026381,-1000.0,9.63e-05,2]
[403627768,1769430031437,-400.0,9.63e-05,2]
[403627769,1769430057948,-1000.0,9.63e-05,2]
[403627770,1769430059292,-1000.0,9.63e-05,2]
[403627771,1769430060353,-1000.0,9.63e-05,2]
[403627772,1769430061349,-1000.0,9.63e-05,2]
[403627773,1769430067722,-200.0,9.629e-05,2]
[403627774,1769430155529,-208.96,9.6e-05,2]
[403627775,1769430155550,-300.0,9.629e-05,2]
[403627776,1769430155571,-491.04,9.63e-05,2]
[403627777,1769430164827,-213.20557492,9.63e-05,2]
[403627778,1769430164847,-86.79442508,9.63e-05,2]
[403627779,1769430193215,-300.0,9.629e-05,2]
[403627780,1769430193235,-700.0,9.63e-05,2]
[403627781,1769430195023,-1000.0,9.63e-05,2]
[403627782,1769430196113,-1000.0,9.63e-05,2]